Workbook

Sheet 5v5Per60
A1: NAME | B1: ALEXOVECHKIN
A2: TEAM | B2: (All)
A3: POS | B3: (All)
A5: Row Labels | B5: G/60 | C5: A1/60 | D5: A2/60 | E5: P/60 | F5: TOI/60 | H5: =B5 -> G/60 | I5: =C5 -> A1/60 | J5: =D5 -> A2/60 | K5: =E5 -> P/60 | L5: =F5 -> TOI/60 | M5: G/60 | N5: A1/60 | O5: A2/60 | P5: P/60
A6: 11 | B6: 1.4 | C6: 1.05 | D6: 0 | E6: 2.44 | F6: 15.62
A7: 12 | B7: 1.3 | C7: 1.3 | D7: 0 | E7: 2.59 | F7: 15.44
A8: 13 | B8: 1.16 | C8: 1.16 | D8: 0 | E8: 2.32 | F8: 15.9
A9: 14 | B9: 1.07 | C9: 1.07 | D9: 0 | E9: 2.14 | F9: 16.03
A10: 15 | B10: 1.27 | C10: 1.01 | D10: 0 | E10: 2.28 | F10: 15.79 | H10: =AVERAGE(B6:B10) -> 1.24 | I10: =AVERAGE(C6:C10) -> 1.118 | J10: 0 | K10: 2.354 | L10: 15.756 | M10: 1.954666667 | N10: 1.746222222 | O10: 1.567222222 | P10: 1.056091954 | Q10: 0.792 | R10: 0.7422222222 | S10: 0.6767777778 | T10: 0.4317241379
A11: 16 | B11: 1.19 | C11: 0.95 | D11: 0 | E11: 2.15 | F11: 15.73 | H11: 1.198 | I11: 1.098 | J11: 0 | K11: 2.296 | L11: 15.778 | M11: 1.954666667 | N11: 1.746222222 | O11: 1.567222222 | P11: 1.056091954 | Q11: 0.792 | R11: 0.7422222222 | S11: 0.6767777778 | T11: 0.4317241379
A12: 17 | B12: 1.11 | C12: 0.89 | D12: 0 | E12: 1.99 | F12: 15.94 | H12: 1.16 | I12: 1.016 | J12: 0 | K12: 2.176 | L12: 15.878 | M12: 1.954666667 | N12: 1.746222222 | O12: 1.567222222 | P12: 1.056091954 | Q12: 0.792 | R12: 0.7422222222 | S12: 0.6767777778 | T12: 0.4317241379
A13: 18 | B13: 1.05 | C13: 0.84 | D13: 0 | E13: 1.89 | F13: 15.88 | H13: 1.138 | I13: 0.952 | J13: 0 | K13: 2.09 | L13: 15.874 | M13: 1.954666667 | N13: 1.746222222 | O13: 1.567222222 | P13: 1.056091954 | Q13: 0.792 | R13: 0.7422222222 | S13: 0.6767777778 | T13: 0.4317241379
A14: 19 | B14: 0.99 | C14: 0.99 | D14: 0 | E14: 1.98 | F14: 15.97 | H14: 1.122 | I14: 0.936 | J14: 0 | K14: 2.058 | L14: 15.862 | M14: 1.954666667 | N14: 1.746222222 | O14: 1.567222222 | P14: 1.056091954 | Q14: 0.792 | R14: 0.7422222222 | S14: 0.6767777778 | T14: 0.4317241379
A15: 23 | B15: 0.96 | C15: 0.8 | D15: 0 | E15: 1.77 | F15: 16.25 | H15: 1.06 | I15: 0.894 | J15: 0 | K15: 1.956 | L15: 15.954 | M15: 1.954666667 | N15: 1.746222222 | O15: 1.567222222 | P15: 1.056091954 | Q15: 0.792 | R15: 0.7422222222 | S15: 0.6767777778 | T15: 0.4317241379
A16: 24 | B16: 0.91 | C16: 0.76 | D16: 0 | E16: 1.68 | F16: 16.4 | H16: 1.004 | I16: 0.856 | J16: 0 | K16: 1.862 | L16: 16.088 | M16: 1.954666667 | N16: 1.746222222 | O16: 1.567222222 | P16: 1.056091954 | Q16: 0.792 | R16: 0.7422222222 | S16: 0.6767777778 | T16: 0.4317241379
A17: 25 | B17: 0.88 | C17: 0.74 | D17: 0 | E17: 1.62 | F17: 16.29 | H17: 0.958 | I17: 0.826 | J17: 0 | K17: 1.788 | L17: 16.158 | M17: 1.954666667 | N17: 1.746222222 | O17: 1.567222222 | P17: 1.056091954 | Q17: 0.792 | R17: 0.7422222222 | S17: 0.6767777778 | T17: 0.4317241379
A18: 26 | B18: 0.86 | C18: 0.71 | D18: 0 | E18: 1.57 | F18: 16.15 | H18: 0.92 | I18: 0.8 | J18: 0 | K18: 1.724 | L18: 16.212 | M18: 1.954666667 | N18: 1.746222222 | O18: 1.567222222 | P18: 1.056091954 | Q18: 0.792 | R18: 0.7422222222 | S18: 0.6767777778 | T18: 0.4317241379
A19: 27 | B19: 0.83 | C19: 0.69 | D19: 0 | E19: 1.52 | F19: 16.08 | H19: 0.888 | I19: 0.74 | J19: 0 | K19: 1.632 | L19: 16.234 | M19: 1.954666667 | N19: 1.746222222 | O19: 1.567222222 | P19: 1.056091954 | Q19: 0.792 | R19: 0.7422222222 | S19: 0.6767777778 | T19: 0.4317241379
A20: 28 | B20: 0.8 | C20: 0.94 | D20: 0 | E20: 1.74 | F20: 16.02 | H20: 0.856 | I20: 0.768 | J20: 0 | K20: 1.626 | L20: 16.188 | M20: 1.954666667 | N20: 1.746222222 | O20: 1.567222222 | P20: 1.056091954 | Q20: 0.792 | R20: 0.7422222222 | S20: 0.6767777778 | T20: 0.4317241379
A21: 29 | B21: 0.9 | C21: 0.9 | D21: 0 | E21: 1.81 | F21: 16.03 | H21: 0.854 | I21: 0.796 | J21: 0 | K21: 1.652 | L21: 16.114 | M21: 1.954666667 | N21: 1.746222222 | O21: 1.567222222 | P21: 1.056091954 | Q21: 0.792 | R21: 0.7422222222 | S21: 0.6767777778 | T21: 0.4317241379
A22: 30 | B22: 0.88 | C22: 0.88 | D22: 0 | E22: 1.75 | F22: 16 | H22: 0.854 | I22: 0.824 | J22: 0 | K22: 1.678 | L22: 16.056 | M22: 1.954666667 | N22: 1.746222222 | O22: 1.567222222 | P22: 1.056091954 | Q22: 0.792 | R22: 0.7422222222 | S22: 0.6767777778 | T22: 0.4317241379
A23: 33 | B23: 0.92 | C23: 0.8 | D23: 0 | E23: 1.72 | F23: 15.88 | H23: 0.866 | I23: 0.842 | J23: 0 | K23: 1.708 | L23: 16.002 | M23: 1.954666667 | N23: 1.746222222 | O23: 1.567222222 | P23: 1.056091954 | Q23: 0.792 | R23: 0.7422222222 | S23: 0.6767777778 | T23: 0.4317241379
A24: 34 | B24: 0.67 | C24: 0.78 | D24: 0 | E24: 1.44 | F24: 15.92 | H24: 0.834 | I24: 0.86 | J24: 0 | K24: 1.692 | L24: 15.97 | M24: 1.954666667 | N24: 1.746222222 | O24: 1.567222222 | P24: 1.056091954 | Q24: 0.792 | R24: 0.7422222222 | S24: 0.6767777778 | T24: 0.4317241379
A25: 35 | B25: 0.76 | C25: 0.86 | D25: 0 | E25: 1.62 | F25: 15.87 | H25: 0.826 | I25: 0.844 | J25: 0 | K25: 1.668 | L25: 15.94 | M25: 1.954666667 | N25: 1.746222222 | O25: 1.567222222 | P25: 1.056091954 | Q25: 0.792 | R25: 0.7422222222 | S25: 0.6767777778 | T25: 0.4317241379
A26: 37 | B26: 1.03 | C26: 0.83 | D26: 0 | E26: 1.86 | F26: 15.72 | H26: 0.852 | I26: =AVERAGE(C22:C26) -> 0.83 | J26: =AVERAGE(D22:D26) -> 0 | K26: =AVERAGE(E22:E26) -> 1.678 | L26: =AVERAGE(F22:F26) -> 15.878 | M26: 1.954666667 | N26: 1.746222222 | O26: 1.567222222 | P26: 1.056091954 | Q26: 0.792 | R26: 0.7422222222 | S26: 0.6767777778 | T26: 0.4317241379
A27: 38 | B27: 1.01 | C27: 0.91 | D27: 0 | E27: 1.91 | F27: 15.67 | H27: =AVERAGE(B23:B27) -> 0.878 | I27: 0.836 | J27: 0 | K27: 1.71 | L27: 15.812 | M27: 1.954666667 | N27: 1.746222222 | O27: 1.567222222 | P27: 1.056091954 | Q27: 0.792 | R27: 0.7422222222 | S27: 0.6767777778 | T27: 0.4317241379
A28: 41 | B28: 1.03 | C28: 0.84 | D28: 0 | E28: 1.87 | F28: 15.69 | H28: 0.9 | I28: 0.844 | J28: 0 | K28: 1.74 | L28: 15.774 | M28: 1.954666667 | N28: 1.746222222 | O28: 1.567222222 | P28: 1.056091954 | Q28: 0.792 | R28: 0.7422222222 | S28: 0.6767777778 | T28: 0.4317241379
A29: 42 | B29: 1 | C29: 0.82 | D29: 0 | E29: 1.83 | F29: 15.64 | H29: 0.966 | I29: 0.852 | J29: 0 | K29: 1.818 | L29: 15.718 | M29: 1.954666667 | N29: 1.746222222 | O29: 1.567222222 | P29: 1.056091954 | Q29: 0.792 | R29: 0.7422222222 | S29: 0.6767777778 | T29: 0.4317241379
A30: 43 | B30: 0.98 | C30: 0.8 | D30: 0 | E30: 1.78 | F30: 15.65 | H30: 1.01 | I30: 0.84 | J30: 0 | K30: 1.85 | L30: 15.674 | M30: 1.954666667 | N30: 1.746222222 | O30: 1.567222222 | P30: 1.056091954 | Q30: 0.792 | R30: 0.7422222222 | S30: 0.6767777778 | T30: 0.4317241379
A31: 44 | B31: 1.04 | C31: 0.78 | D31: 0 | E31: 1.82 | F31: 15.7 | H31: 1.012 | I31: 0.83 | J31: 0 | K31: 1.842 | L31: 15.67 | M31: 1.954666667 | N31: 1.746222222 | O31: 1.567222222 | P31: 1.056091954 | Q31: 0.792 | R31: 0.7422222222 | S31: 0.6767777778 | T31: 0.4317241379
A32: 45 | B32: 1.1 | C32: 0.85 | D32: 0 | E32: 1.95 | F32: 15.71 | H32: 1.03 | I32: 0.818 | J32: 0 | K32: 1.85 | L32: 15.678 | M32: 1.954666667 | N32: 1.746222222 | O32: 1.567222222 | P32: 1.056091954 | Q32: 0.792 | R32: 0.7422222222 | S32: 0.6767777778 | T32: 0.4317241379
A33: 46 | B33: 1.16 | C33: 0.83 | D33: 0 | E33: 2 | F33: 15.68 | H33: 1.056 | I33: 0.816 | J33: 0 | K33: 1.876 | L33: 15.676 | M33: 1.954666667 | N33: 1.746222222 | O33: 1.567222222 | P33: 1.056091954 | Q33: 0.792 | R33: 0.7422222222 | S33: 0.6767777778 | T33: 0.4317241379
A34: 47 | B34: 1.23 | C34: 0.82 | D34: 0 | E34: 2.04 | F34: 15.61 | H34: =AVERAGE(B30:B34) -> 1.102 | I34: =AVERAGE(C30:C34) -> 0.816 | J34: =AVERAGE(D30:D34) -> 0 | K34: =AVERAGE(E30:E34) -> 1.918 | L34: 15.67 | M34: 1.954666667 | N34: 1.746222222 | O34: 1.567222222 | P34: 1.056091954 | Q34: 0.792 | R34: 0.7422222222 | S34: 0.6767777778 | T34: 0.4317241379
A35: 48 | B35: 1.2 | C35: 0.8 | D35: 0 | E35: 2.01 | F35: 15.59 | H35: 1.146 | I35: 0.816 | J35: 0 | K35: 1.964 | L35: 15.658 | M35: 1.954666667 | N35: 1.746222222 | O35: 1.567222222 | P35: 1.056091954 | Q35: 0.792 | R35: 0.7422222222 | S35: 0.6767777778 | T35: 0.4317241379
A36: 49 | B36: 1.18 | C36: 0.79 | D36: 0.08 | E36: 2.04 | F36: 15.59 | H36: 1.174 | I36: 0.818 | J36: 0.016 | K36: 2.008 | L36: 15.636 | M36: 1.954666667 | N36: 1.746222222 | O36: 1.567222222 | P36: 1.056091954 | Q36: 0.792 | R36: 0.7422222222 | S36: 0.6767777778 | T36: 0.4317241379
A37: 50 | B37: 1.16 | C37: 0.77 | D37: 0.15 | E37: 2.08 | F37: 15.57 | H37: 1.186 | I37: 0.802 | J37: 0.046 | K37: 2.034 | L37: 15.608 | M37: 1.954666667 | N37: 1.746222222 | O37: 1.567222222 | P37: 1.056091954 | Q37: 0.792 | R37: 0.7422222222 | S37: 0.6767777778 | T37: 0.4317241379
A38: 51 | B38: 1.21 | C38: 0.75 | D38: 0.15 | E38: 2.11 | F38: 15.61 | H38: 1.196 | I38: 0.786 | J38: 0.076 | K38: 2.056 | L38: 15.594 | M38: 1.954666667 | N38: 1.746222222 | O38: 1.567222222 | P38: 1.056091954 | Q38: 0.792 | R38: 0.7422222222 | S38: 0.6767777778 | T38: 0.4317241379
A39: 52 | B39: 1.18 | C39: 0.74 | D39: 0.15 | E39: 2.07 | F39: 15.61 | H39: 1.186 | I39: 0.77 | J39: 0.106 | K39: 2.062 | L39: 15.594 | M39: 1.954666667 | N39: 1.746222222 | O39: 1.567222222 | P39: 1.056091954 | Q39: 0.792 | R39: 0.7422222222 | S39: 0.6767777778 | T39: 0.4317241379
A40: 53 | B40: 1.16 | C40: 0.73 | D40: 0.15 | E40: 2.04 | F40: 15.56 | H40: 1.178 | I40: 0.756 | J40: 0.136 | K40: 2.068 | L40: 15.588 | M40: 1.954666667 | N40: 1.746222222 | O40: 1.567222222 | P40: 1.056091954 | Q40: 0.792 | R40: 0.7422222222 | S40: 0.6767777778 | T40: 0.4317241379
A41: 54 | B41: 1.14 | C41: 0.71 | D41: 0.14 | E41: 2 | F41: 15.59 | H41: 1.17 | I41: 0.74 | J41: 0.148 | K41: 2.06 | L41: 15.588 | M41: 1.954666667 | N41: 1.746222222 | O41: 1.567222222 | P41: 1.056091954 | Q41: 0.792 | R41: 0.7422222222 | S41: 0.6767777778 | T41: 0.4317241379
A42: 55 | B42: 1.12 | C42: 0.7 | D42: 0.14 | E42: 1.95 | F42: 15.65 | H42: 1.162 | I42: 0.726 | J42: 0.146 | K42: 2.034 | L42: 15.604 | M42: 1.954666667 | N42: 1.746222222 | O42: 1.567222222 | P42: 1.056091954 | Q42: 0.792 | R42: 0.7422222222 | S42: 0.6767777778 | T42: 0.4317241379
A43: 56 | B43: 1.17 | C43: 0.83 | D43: 0.14 | E43: 2.13 | F43: 15.57 | H43: 1.154 | I43: 0.742 | J43: 0.144 | K43: 2.038 | L43: 15.596 | M43: 1.954666667 | N43: 1.746222222 | O43: 1.567222222 | P43: 1.056091954 | Q43: 0.792 | R43: 0.7422222222 | S43: 0.6767777778 | T43: 0.4317241379
A44: 58 | B44: 1.13 | C44: 0.8 | D44: 0.13 | E44: 2.07 | F44: 15.51 | H44: 1.144 | I44: 0.754 | J44: 0.14 | K44: 2.038 | L44: 15.576 | M44: 1.954666667 | N44: 1.746222222 | O44: 1.567222222 | P44: 1.056091954 | Q44: 0.792 | R44: 0.7422222222 | S44: 0.6767777778 | T44: 0.4317241379
A45: 59 | B45: 1.18 | C45: 0.79 | D45: 0.13 | E45: 2.11 | F45: 15.45 | H45: 1.148 | I45: 0.766 | J45: 0.136 | K45: 2.052 | L45: 15.554 | M45: 1.954666667 | N45: 1.746222222 | O45: 1.567222222 | P45: 1.056091954 | Q45: 0.792 | R45: 0.7422222222 | S45: 0.6767777778 | T45: 0.4317241379
A46: 60 | B46: 1.17 | C46: 0.78 | D46: 0.13 | E46: 2.07 | F46: 15.45 | H46: 1.154 | I46: 0.78 | J46: 0.134 | K46: 2.066 | L46: 15.526 | M46: 1.954666667 | N46: 1.746222222 | O46: 1.567222222 | P46: 1.056091954 | Q46: 0.792 | R46: 0.7422222222 | S46: 0.6767777778 | T46: 0.4317241379
A47: 61 | B47: 1.14 | C47: 0.76 | D47: 0.13 | E47: 2.03 | F47: 15.5 | H47: 1.158 | I47: 0.792 | J47: 0.132 | K47: 2.082 | L47: 15.496 | M47: 1.954666667 | N47: 1.746222222 | O47: 1.567222222 | P47: 1.056091954 | Q47: 0.792 | R47: 0.7422222222 | S47: 0.6767777778 | T47: 0.4317241379
A48: 62 | B48: 1.25 | C48: 0.75 | D48: 0.13 | E48: 2.13 | F48: 15.45 | H48: =AVERAGE(B44:B48) -> 1.174 | I48: 0.776 | J48: 0.13 | K48: =AVERAGE(E44:E48) -> 2.082 | L48: 15.472 | M48: 1.954666667 | N48: 1.746222222 | O48: 1.567222222 | P48: 1.056091954 | Q48: 0.792 | R48: 0.7422222222 | S48: 0.6767777778 | T48: 0.4317241379
A49: 63 | B49: 1.29 | C49: 0.74 | D49: 0.12 | E49: 2.15 | F49: 15.47 | H49: 1.206 | I49: 0.764 | J49: 0.128 | K49: 2.098 | L49: 15.464 | M49: 1.954666667 | N49: 1.746222222 | O49: 1.567222222 | P49: 1.056091954 | Q49: 0.792 | R49: 0.7422222222 | S49: 0.6767777778 | T49: 0.4317241379
A50: 64 | B50: 1.27 | C50: 0.79 | D50: 0.12 | E50: 2.18 | F50: 15.47 | H50: 1.224 | I50: 0.764 | J50: 0.126 | K50: 2.112 | L50: 15.468 | M50: 1.954666667 | N50: 1.746222222 | O50: 1.567222222 | P50: 1.056091954 | Q50: 0.792 | R50: 0.7422222222 | S50: 0.6767777778 | T50: 0.4317241379
A51: 65 | B51: 1.25 | C51: 0.78 | D51: 0.12 | E51: 2.15 | F51: 15.47 | H51: 1.24 | I51: 0.764 | J51: 0.124 | K51: 2.128 | L51: 15.472 | M51: 1.954666667 | N51: 1.746222222 | O51: 1.567222222 | P51: 1.056091954 | Q51: 0.792 | R51: 0.7422222222 | S51: 0.6767777778 | T51: 0.4317241379
A52: 66 | B52: 1.23 | C52: 0.76 | D52: 0.18 | E52: 2.17 | F52: 15.49 | H52: 1.258 | I52: 0.764 | J52: 0.134 | K52: 2.156 | L52: 15.47 | M52: 1.954666667 | N52: 1.746222222 | O52: 1.567222222 | P52: 1.056091954 | Q52: 0.792 | R52: 0.7422222222 | S52: 0.6767777778 | T52: 0.4317241379
A53: 67 | B53: 1.21 | C53: 0.75 | D53: 0.17 | E53: 2.14 | F53: 15.5 | H53: 1.25 | I53: 0.764 | J53: 0.142 | K53: =AVERAGE(E49:E53) -> 2.158 | L53: 15.48 | M53: 1.954666667 | N53: 1.746222222 | O53: 1.567222222 | P53: 1.056091954 | Q53: 0.792 | R53: 0.7422222222 | S53: 0.6767777778 | T53: 0.4317241379
A54: 68 | B54: 1.26 | C54: 0.74 | D54: 0.17 | E54: 2.17 | F54: 15.44 | H54: =AVERAGE(B50:B54) -> 1.244 | I54: =AVERAGE(C50:C54) -> 0.764 | J54: =AVERAGE(D50:D54) -> 0.152 | K54: =AVERAGE(E50:E54) -> 2.162 | L54: 15.474 | M54: 1.954666667 | N54: 1.746222222 | O54: 1.567222222 | P54: 1.056091954 | Q54: 0.792 | R54: 0.7422222222 | S54: 0.6767777778 | T54: 0.4317241379
A55: 69 | B55: 1.24 | C55: 0.73 | D55: 0.17 | E55: 2.14 | F55: 15.45 | H55: 1.238 | I55: 0.752 | J55: 0.162 | K55: 2.154 | L55: 15.47 | M55: 1.954666667 | N55: 1.746222222 | O55: 1.567222222 | P55: 1.056091954 | Q55: 0.792 | R55: 0.7422222222 | S55: 0.6767777778 | T55: 0.4317241379
A56: 70 | B56: 1.22 | C56: 0.72 | D56: 0.17 | E56: 2.11 | F56: 15.46 | H56: 1.232 | I56: 0.74 | J56: 0.172 | K56: 2.146 | L56: 15.468 | M56: 1.954666667 | N56: 1.746222222 | O56: 1.567222222 | P56: 1.056091954 | Q56: 0.792 | R56: 0.7422222222 | S56: 0.6767777778 | T56: 0.4317241379
A57: 71 | B57: 1.26 | C57: 0.71 | D57: 0.16 | E57: 2.14 | F57: 15.4 | H57: 1.238 | I57: 0.73 | J57: 0.168 | K57: 2.14 | L57: 15.45 | M57: 1.954666667 | N57: 1.746222222 | O57: 1.567222222 | P57: 1.056091954 | Q57: 0.792 | R57: 0.7422222222 | S57: 0.6767777778 | T57: 0.4317241379
A58: 72 | B58: 1.3 | C58: 0.76 | D58: 0.16 | E58: 2.22 | F58: 15.4 | H58: 1.256 | I58: 0.732 | J58: 0.166 | K58: 2.156 | L58: 15.43 | M58: 1.954666667 | N58: 1.746222222 | O58: 1.567222222 | P58: 1.056091954 | Q58: 0.792 | R58: 0.7422222222 | S58: 0.6767777778 | T58: 0.4317241379
A59: 73 | B59: 1.28 | C59: 0.75 | D59: 0.16 | E59: 2.19 | F59: 15.42 | H59: 1.26 | I59: 0.734 | J59: 0.164 | K59: 2.16 | L59: 15.426 | M59: 1.954666667 | N59: 1.746222222 | O59: 1.567222222 | P59: 1.056091954 | Q59: 0.792 | R59: 0.7422222222 | S59: 0.6767777778 | T59: 0.4317241379
H60: 1.265 | I60: 0.735 | J60: 0.1625 | K60: 2.165 | L60: 15.42 | M60: 1.954666667 | N60: 1.746222222 | O60: 1.567222222 | P60: 1.056091954 | Q60: 0.792 | R60: 0.7422222222 | S60: 0.6767777778 | T60: 0.4317241379

Sheet 5v4Per60
A1: NAME | B1: ALEXOVECHKIN
A2: TEAM | B2: (All)
A3: POS | B3: (All)
G4: G/60 | H4: A1/60 | I4: A2/60 | J4: P/60 | K4: TOI/60 | L4: 1st PP | M4: 2nd PP
B5: G/60 | C5: A1/60 | D5: A2/60 | E5: P/60 | F5: TOI/60
A6: 11 | B6: 4.84 | C6: 3.23 | D6: 0 | E6: 8.07 | F6: 3.38
A7: 12 | B7: 4.41 | C7: 2.94 | D7: 0 | E7: 7.34 | F7: 3.4
A8: 13 | B8: 4.29 | C8: 2.86 | D8: 0 | E8: 7.15 | F8: 3.23
A9: 14 | B9: 3.96 | C9: 2.64 | D9: 0 | E9: 6.6 | F9: 3.25 | G9: =AVERAGE(B5:B9) -> 4.375 | H9: =AVERAGE(C5:C9) -> 2.9175 | I9: =AVERAGE(D5:D9) -> 0 | J9: =AVERAGE(E5:E9) -> 7.29 | K9: =AVERAGE(F5:F9) -> 3.315 | L9: 5.025222222 | M9: 2.631392405 | N9: 2.044555556 | O9: 0.9601265823
A10: 15 | B10: 3.56 | C10: 2.37 | D10: 0 | E10: 5.93 | F10: 3.37 | G10: =AVERAGE(B6:B10) -> 4.212 | H10: =AVERAGE(C6:C10) -> 2.808 | I10: =AVERAGE(D6:D10) -> 0 | J10: =AVERAGE(E6:E10) -> 7.018 | K10: =AVERAGE(F6:F10) -> 3.326 | L10: 5.025222222 | M10: 2.631392405 | N10: 2.044555556 | O10: 0.9601265823
A11: 16 | B11: 3.13 | C11: 2.09 | D11: 0 | E11: 5.22 | F11: 3.59 | G11: 3.87 | H11: 2.58 | I11: 0 | J11: 6.448 | K11: 3.368 | L11: 5.025222222 | M11: 2.631392405 | N11: 2.044555556 | O11: 0.9601265823
A12: 17 | B12: 3.13 | C12: 2.09 | D12: 0 | E12: 5.22 | F12: 3.38 | G12: 3.614 | H12: 2.41 | I12: 0 | J12: 6.024 | K12: 3.364 | L12: 5.025222222 | M12: 2.631392405 | N12: 2.044555556 | O12: 0.9601265823
A13: 18 | B13: 2.87 | C13: 1.91 | D13: 0 | E13: 4.78 | F13: 3.48 | G13: 3.33 | H13: 2.22 | I13: 0 | J13: 5.55 | K13: 3.414 | L13: 5.025222222 | M13: 2.631392405 | N13: 2.044555556 | O13: 0.9601265823
A14: 19 | B14: 2.83 | C14: 1.89 | D14: 0 | E14: 4.72 | F14: 3.35 | G14: 3.104 | H14: 2.07 | I14: 0 | J14: 5.174 | K14: 3.434 | L14: 5.025222222 | M14: 2.631392405 | N14: 2.044555556 | O14: 0.9601265823
A15: 23 | B15: 4.14 | C15: 1.66 | D15: 0 | E15: 5.8 | F15: 3.15 | G15: 3.22 | H15: 1.928 | I15: 0 | J15: 5.148 | K15: 3.39 | L15: 5.025222222 | M15: 2.631392405 | N15: 2.044555556 | O15: 0.9601265823
A16: 24 | B16: 4.03 | C16: 1.61 | D16: 0 | E16: 5.64 | F16: 3.1 | G16: 3.4 | H16: 1.832 | I16: 0 | J16: 5.232 | K16: 3.292 | L16: 5.025222222 | M16: 2.631392405 | N16: 2.044555556 | O16: 0.9601265823
A17: 25 | B17: 3.84 | C17: 1.54 | D17: 0 | E17: 5.38 | F17: 3.12 | G17: 3.542 | H17: 1.722 | I17: 0 | J17: 5.264 | K17: 3.24 | L17: 5.025222222 | M17: 2.631392405 | N17: 2.044555556 | O17: 0.9601265823
A18: 26 | B18: 3.66 | C18: 1.47 | D18: 0 | E18: 5.13 | F18: 3.15 | G18: 3.7 | H18: 1.634 | I18: 0 | J18: 5.334 | K18: 3.174 | L18: 5.025222222 | M18: 2.631392405 | N18: 2.044555556 | O18: 0.9601265823
A19: 27 | B19: 3.36 | C19: 1.34 | D19: 0 | E19: 4.7 | F19: 3.31 | G19: 3.806 | H19: 1.524 | I19: 0 | J19: 5.33 | K19: 3.166 | L19: 5.025222222 | M19: 2.631392405 | N19: 2.044555556 | O19: 0.9601265823
A20: 28 | B20: 3.15 | C20: 1.26 | D20: 0 | E20: 4.4 | F20: 3.41 | G20: 3.608 | H20: 1.444 | I20: 0 | J20: 5.05 | K20: 3.218 | L20: 5.025222222 | M20: 2.631392405 | N20: 2.044555556 | O20: 0.9601265823
A21: 29 | B21: 3.06 | C21: 1.83 | D21: 0 | E21: 4.89 | F21: 3.38 | G21: 3.414 | H21: 1.488 | I21: 0 | J21: 4.9 | K21: 3.274 | L21: 5.025222222 | M21: 2.631392405 | N21: 2.044555556 | O21: 0.9601265823
A22: 30 | B22: 2.92 | C22: 1.75 | D22: 0 | E22: 4.68 | F22: 3.42 | G22: 3.23 | H22: 1.53 | I22: 0 | J22: 4.76 | K22: 3.334 | L22: 5.025222222 | M22: 2.631392405 | N22: 2.044555556 | O22: 0.9601265823
A23: 33 | B23: 3.03 | C23: 1.52 | D23: 0 | E23: 4.55 | F23: 3.6 | G23: 3.104 | H23: 1.54 | I23: 0 | J23: 4.644 | K23: 3.424 | L23: 5.025222222 | M23: 2.631392405 | N23: 2.044555556 | O23: 0.9601265823
A24: 34 | B24: 2.88 | C24: 1.44 | D24: 0 | E24: 4.32 | F24: 3.68 | G24: 3.008 | H24: 1.56 | I24: 0 | J24: 4.568 | K24: 3.498 | L24: 5.025222222 | M24: 2.631392405 | N24: 2.044555556 | O24: 0.9601265823
A25: 35 | B25: 2.77 | C25: 1.39 | D25: 0 | E25: 4.16 | F25: 3.71 | G25: 2.932 | H25: 1.586 | I25: 0 | J25: 4.52 | K25: 3.558 | L25: 5.025222222 | M25: 2.631392405 | N25: 2.044555556 | O25: 0.9601265823
A26: 37 | B26: 2.65 | C26: 1.76 | D26: 0 | E26: 4.41 | F26: 3.68 | G26: 2.85 | H26: 1.572 | I26: 0 | J26: 4.424 | K26: 3.618 | L26: 5.025222222 | M26: 2.631392405 | N26: 2.044555556 | O26: 0.9601265823
A27: 38 | B27: 3.03 | C27: 1.73 | D27: 0 | E27: 4.76 | F27: 3.65 | G27: 2.872 | H27: 1.568 | I27: 0 | J27: 4.44 | K27: 3.664 | L27: 5.025222222 | M27: 2.631392405 | N27: 2.044555556 | O27: 0.9601265823
A28: 41 | B28: 3.23 | C28: 1.62 | D28: 0 | E28: 4.85 | F28: 3.62 | G28: 2.912 | H28: 1.588 | I28: 0 | J28: 4.5 | K28: 3.668 | L28: 5.025222222 | M28: 2.631392405 | N28: 2.044555556 | O28: 0.9601265823
A29: 42 | B29: 3.53 | C29: 1.57 | D29: 0 | E29: 5.1 | F29: 3.64 | G29: 3.042 | H29: 1.614 | I29: 0 | J29: 4.656 | K29: 3.66 | L29: 5.025222222 | M29: 2.631392405 | N29: 2.044555556 | O29: 0.9601265823
A30: 43 | B30: 3.47 | C30: 1.54 | D30: 0 | E30: 5.02 | F30: 3.62 | G30: 3.182 | H30: 1.644 | I30: 0 | J30: 4.828 | K30: 3.642 | L30: 5.025222222 | M30: 2.631392405 | N30: 2.044555556 | O30: 0.9601265823
A31: 44 | B31: 3.8 | C31: 1.52 | D31: 0 | E31: 5.32 | F31: 3.59 | G31: 3.412 | H31: 1.596 | I31: 0 | J31: 5.01 | K31: 3.624 | L31: 5.025222222 | M31: 2.631392405 | N31: 2.044555556 | O31: 0.9601265823
A32: 45 | B32: 3.72 | C32: 1.49 | D32: 0 | E32: 5.21 | F32: 3.58 | G32: 3.55 | H32: 1.548 | I32: 0 | J32: 5.1 | K32: 3.61 | L32: 5.025222222 | M32: 2.631392405 | N32: 2.044555556 | O32: 0.9601265823
A33: 46 | B33: 4.03 | C33: 1.46 | D33: 0 | E33: 5.49 | F33: 3.56 | G33: 3.71 | H33: 1.516 | I33: 0 | J33: 5.228 | K33: 3.598 | L33: 5.025222222 | M33: 2.631392405 | N33: 2.044555556 | O33: 0.9601265823
A34: 47 | B34: 4.3 | C34: 1.43 | D34: 0 | E34: 5.74 | F34: 3.56 | G34: 3.864 | H34: 1.488 | I34: 0 | J34: 5.356 | K34: 3.582 | L34: 5.025222222 | M34: 2.631392405 | N34: 2.044555556 | O34: 0.9601265823
A35: 48 | B35: 4.11 | C35: 1.37 | D35: 0 | E35: 5.48 | F35: 3.65 | G35: 3.992 | H35: 1.454 | I35: 0 | J35: 5.448 | K35: 3.588 | L35: 5.025222222 | M35: 2.631392405 | N35: 2.044555556 | O35: 0.9601265823
A36: 49 | B36: 4.29 | C36: 1.32 | D36: 0 | E36: 5.61 | F36: 3.71 | G36: 4.09 | H36: 1.414 | I36: 0 | J36: 5.506 | K36: 3.612 | L36: 5.025222222 | M36: 2.631392405 | N36: 2.044555556 | O36: 0.9601265823
A37: 50 | B37: 4.21 | C37: 1.3 | D37: 0 | E37: 5.51 | F37: 3.7 | G37: 4.188 | H37: 1.376 | I37: 0 | J37: 5.566 | K37: 3.636 | L37: 5.025222222 | M37: 2.631392405 | N37: 2.044555556 | O37: 0.9601265823
A38: 51 | B38: 4.19 | C38: 1.29 | D38: 0 | E38: 5.48 | F38: 3.65 | G38: 4.22 | H38: 1.342 | I38: 0 | J38: 5.564 | K38: 3.654 | L38: 5.025222222 | M38: 2.631392405 | N38: 2.044555556 | O38: 0.9601265823
A39: 52 | B39: 4.16 | C39: 1.28 | D39: 0 | E39: 5.44 | F39: 3.61 | G39: 4.192 | H39: 1.312 | I39: 0 | J39: 5.504 | K39: 3.664 | L39: 5.025222222 | M39: 2.631392405 | N39: 2.044555556 | O39: 0.9601265823
A40: 53 | B40: 4.3 | C40: 1.23 | D40: 0 | E40: 5.53 | F40: 3.68 | G40: 4.23 | H40: 1.284 | I40: 0 | J40: 5.514 | K40: 3.67 | L40: 5.025222222 | M40: 2.631392405 | N40: 2.044555556 | O40: 0.9601265823
A41: 54 | B41: 4.23 | C41: 1.51 | D41: 0 | E41: 5.74 | F41: 3.68 | G41: 4.218 | H41: 1.322 | I41: 0 | J41: 5.54 | K41: 3.664 | L41: 5.025222222 | M41: 2.631392405 | N41: 2.044555556 | O41: 0.9601265823
A42: 55 | B42: 4.19 | C42: 1.5 | D42: 0 | E42: 5.68 | F42: 3.65 | G42: 4.214 | H42: 1.362 | I42: 0 | J42: 5.574 | K42: 3.654 | L42: 5.025222222 | M42: 2.631392405 | N42: 2.044555556 | O42: 0.9601265823
A43: 56 | B43: 4.37 | C43: 1.46 | D43: 0 | E43: 5.83 | F43: 3.67 | G43: 4.25 | H43: 1.396 | I43: 0 | J43: 5.644 | K43: 3.658 | L43: 5.025222222 | M43: 2.631392405 | N43: 2.044555556 | O43: 0.9601265823
A44: 58 | B44: 4.44 | C44: 1.39 | D44: 0 | E44: 5.83 | F44: 3.72 | G44: 4.306 | H44: 1.418 | I44: 0 | J44: 5.722 | K44: 3.68 | L44: 5.025222222 | M44: 2.631392405 | N44: 2.044555556 | O44: 0.9601265823
A45: 59 | B45: 4.3 | C45: 1.61 | D45: 0 | E45: 5.91 | F45: 3.79 | G45: =AVERAGE(B41:B45) -> 4.306 | H45: 1.494 | I45: 0 | J45: 5.798 | K45: 3.702 | L45: 5.025222222 | M45: 2.631392405 | N45: 2.044555556 | O45: 0.9601265823
A46: 60 | B46: 4.4 | C46: 1.55 | D46: 0 | E46: 5.95 | F46: 3.87 | G46: 4.34 | H46: 1.502 | I46: 0 | J46: 5.84 | K46: 3.74 | L46: 5.025222222 | M46: 2.631392405 | N46: 2.044555556 | O46: 0.9601265823
A47: 61 | B47: 4.36 | C47: 1.54 | D47: 0 | E47: 5.9 | F47: 3.83 | G47: 4.374 | H47: 1.51 | I47: 0 | J47: 5.884 | K47: 3.776 | L47: 5.025222222 | M47: 2.631392405 | N47: 2.044555556 | O47: 0.9601265823
A48: 62 | B48: 4.3 | C48: 1.52 | D48: 0.25 | E48: 6.07 | F48: 3.83 | G48: 4.36 | H48: 1.522 | I48: 0.05 | J48: 5.932 | K48: 3.808 | L48: 5.025222222 | M48: 2.631392405 | N48: 2.044555556 | O48: 0.9601265823
A49: 63 | B49: 4.49 | C49: 1.5 | D49: 0.25 | E49: 6.24 | F49: 3.82 | G49: 4.37 | H49: 1.544 | I49: 0.1 | J49: 6.014 | K49: 3.828 | L49: 5.025222222 | M49: 2.631392405 | N49: 2.044555556 | O49: 0.9601265823
A50: 64 | B50: 4.67 | C50: 1.48 | D50: 0.25 | E50: 6.4 | F50: 3.81 | G50: =AVERAGE(B46:B50) -> 4.444 | H50: =AVERAGE(C46:C50) -> 1.518 | I50: =AVERAGE(D46:D50) -> 0.15 | J50: =AVERAGE(E46:E50) -> 6.112 | K50: =AVERAGE(F46:F50) -> 3.832 | L50: 5.025222222 | M50: 2.631392405 | N50: 2.044555556 | O50: 0.9601265823
A51: 65 | B51: 4.86 | C51: 1.46 | D51: 0.24 | E51: 6.56 | F51: 3.8 | G51: 4.536 | H51: 1.5 | I51: 0.198 | J51: 6.234 | K51: 3.818 | L51: 5.025222222 | M51: 2.631392405 | N51: 2.044555556 | O51: 0.9601265823
A52: 66 | B52: 4.75 | C52: 1.43 | D52: 0.24 | E52: 6.42 | F52: 3.82 | G52: 4.614 | H52: 1.478 | I52: 0.246 | J52: 6.338 | K52: 3.816 | L52: 5.025222222 | M52: 2.631392405 | N52: 2.044555556 | O52: 0.9601265823
G53: 4.6925 | H53: 1.4675 | I53: 0.245 | J53: 6.405 | K53: 3.8125 | L53: 5.025222222 | M53: 2.631392405 | N53: 2.044555556 | O53: 0.9601265823
G54: 4.76 | H54: 1.456666667 | I54: 0.2433333333 | J54: 6.46 | K54: 3.81 | L54: 5.025222222 | M54: 2.631392405 | N54: 2.044555556 | O54: 0.9601265823
G55: 4.805 | H55: 1.445 | I55: 0.24 | J55: 6.49 | K55: 3.81 | L55: 5.025222222 | M55: 2.631392405 | N55: 2.044555556 | O55: 0.9601265823
G56: 4.75 | H56: 1.43 | I56: 0.24 | J56: 6.42 | K56: 3.82 | L56: 5.025222222 | M56: 2.631392405 | N56: 2.044555556 | O56: 0.9601265823

Sheet Opp TOI
A1: Date | B1: (All)
A2: NAME | B2: CODYFRANSON
A3: TEAM | B3: (All)
A5: Row Labels | B5: OP1 TOI% | C5: OP2 TOI% | D5: OP3 TOI% | E5: OP4 TOI% | F5: OP5 TOI% | G5: OP6 TOI% | I5: OP1 TOI% | J5: OP2 TOI% | K5: OP3 TOI% | L5: OP4 TOI% | M5: OP5 TOI% | N5: OP6 TOI%
A6: 126.95 | B6: 11.7 | C6: 9.5 | D6: 8.7 | E6: 8.2 | F6: 7.9 | G6: 7.7
A7: 141.08 | B7: 10.5 | C7: 8.5 | D7: 7.8 | E7: 7.4 | F7: 7.1 | G7: 6.9
A8: 160.4 | B8: 9.3 | C8: 9.3 | D8: 9.1 | E8: 7.6 | F8: 7.5 | G8: 7.3
A9: 178.7 | B9: 9.1 | C9: 8.7 | D9: 8.5 | E9: 8.4 | F9: 8.3 | G9: 8.1
A10: 194.92 | B10: 8.3 | C10: 8 | D10: 7.8 | E10: 7.7 | F10: 7.6 | G10: 7.5 | I10: =AVERAGE(B6:B10) -> 9.78 | J10: 8.8 | K10: 8.38 | L10: 7.86 | M10: 7.68 | N10: 7.5
A11: 208.42 | B11: 7.8 | C11: 7.5 | D11: 7.3 | E11: 7.2 | F11: 7.1 | G11: 7 | I11: =AVERAGE(B7:B11) -> 9 | J11: =AVERAGE(C7:C11) -> 8.4 | K11: =AVERAGE(D7:D11) -> 8.1 | L11: =AVERAGE(E7:E11) -> 7.66 | M11: =AVERAGE(F7:F11) -> 7.52 | N11: =AVERAGE(G7:G11) -> 7.36
A12: 219.87 | B12: 7.4 | C12: 7.1 | D12: 6.9 | E12: 6.8 | F12: 6.8 | G12: 6.6 | I12: 8.38 | J12: 8.12 | K12: 7.92 | L12: 7.54 | M12: 7.46 | N12: 7.3
A13: 231.98 | B13: 7 | C13: 6.7 | D13: 6.5 | E13: 6.4 | F13: 6.4 | G13: 6.4 | I13: 7.92 | J13: 7.6 | K13: 7.4 | L13: 7.3 | M13: 7.24 | N13: 7.12
A14: 245.18 | B14: 6.6 | C14: 6.3 | D14: 6.2 | E14: 6.1 | F14: 6.1 | G14: 6.1 | I14: 7.42 | J14: 7.12 | K14: 6.94 | L14: 6.84 | M14: 6.8 | N14: 6.72
A15: 259.65 | B15: 6.3 | C15: 6 | D15: 5.8 | E15: 5.8 | F15: 5.7 | G15: 5.7 | I15: 7.02 | J15: 6.72 | K15: 6.54 | L15: 6.46 | M15: 6.42 | N15: 6.36
A16: 310.5 | B16: 8 | C16: 6.9 | D16: 5.6 | E16: 5.5 | F16: 5.3 | G16: 5.2 | I16: 7.06 | J16: 6.6 | K16: 6.2 | L16: 6.12 | M16: 6.06 | N16: 6
A17: 324.25 | B17: 7.6 | C17: 6.6 | D17: 5.3 | E17: 5.2 | F17: 5.1 | G17: 5 | I17: 7.1 | J17: 6.5 | K17: 5.88 | L17: 5.8 | M17: 5.72 | N17: 5.68
A18: 343.15 | B18: 7.2 | C18: 6.2 | D18: 5 | E18: 4.9 | F18: 4.8 | G18: 4.7 | I18: 7.14 | J18: 6.4 | K18: 5.58 | L18: 5.5 | M18: 5.4 | N18: 5.34
A19: 356.02 | B19: 7 | C19: 6 | D19: 4.8 | E19: 4.8 | F19: 4.6 | G19: 4.6 | I19: 7.22 | J19: 6.34 | K19: 5.3 | L19: 5.24 | M19: 5.1 | N19: 5.04
A20: 371.97 | B20: 6.7 | C20: 5.7 | D20: 4.6 | E20: 4.6 | F20: 4.4 | G20: 4.4 | I20: 7.3 | J20: 6.28 | K20: 5.06 | L20: 5 | M20: 4.84 | N20: 4.78
A21: 391.92 | B21: 8.2 | C21: 7.6 | D21: 6.7 | E21: 6.6 | F21: 6.1 | G21: 5.4 | I21: 7.34 | J21: 6.42 | K21: 5.28 | L21: 5.22 | M21: 5 | N21: 4.82
A22: 407.08 | B22: 10 | C22: 8.9 | D22: 7.8 | E22: 7.4 | F22: 6.5 | G22: 6.4 | I22: 7.82 | J22: 6.88 | K22: 5.78 | L22: 5.66 | M22: 5.28 | N22: 5.1
A23: 422.53 | B23: 9.7 | C23: 8.5 | D23: 7.5 | E23: 7.2 | F23: 6.2 | G23: 6.1 | I23: 8.32 | J23: 7.34 | K23: 6.28 | L23: 6.12 | M23: 5.56 | N23: 5.38
A24: 439.43 | B24: 9.3 | C24: 8.2 | D24: 7.2 | E24: 6.9 | F24: 6 | G24: 5.9 | I24: 8.78 | J24: 7.78 | K24: 6.76 | L24: 6.54 | M24: 5.84 | N24: 5.64
A25: 456.4 | B25: 8.9 | C25: 7.9 | D25: 7 | E25: 6.6 | F25: 5.8 | G25: 5.7 | I25: 9.22 | J25: 8.22 | K25: 7.24 | L25: 6.94 | M25: 6.12 | N25: 5.9
A26: 502.07 | B26: 8.1 | C26: 7.2 | D26: 6.3 | E26: 6 | F26: 5.2 | G26: 5.2 | I26: 9.2 | J26: 8.14 | K26: 7.16 | L26: 6.82 | M26: 5.94 | N26: 5.86
A27: 520.97 | B27: 7.8 | C27: 6.9 | D27: 6.1 | E27: 5.8 | F27: 5 | G27: 5 | I27: 8.76 | J27: 7.74 | K27: 6.82 | L27: 6.5 | M27: 5.64 | N27: 5.58
A28: 535.75 | B28: 7.6 | C28: 6.7 | D28: 5.9 | E28: 5.6 | F28: 4.9 | G28: 4.8 | I28: 8.34 | J28: 7.38 | K28: 6.5 | L28: 6.18 | M28: 5.38 | N28: 5.32
A29: 550.92 | B29: 7.4 | C29: 6.5 | D29: 5.8 | E29: 5.5 | F29: 4.8 | G29: 4.7 | I29: 7.96 | J29: 7.04 | K29: 6.22 | L29: 5.9 | M29: 5.14 | N29: 5.08
A30: 566.57 | B30: 7.2 | C30: 6.4 | D30: 5.6 | E30: 5.3 | F30: 4.6 | G30: 4.6 | I30: 7.62 | J30: 6.74 | K30: 5.94 | L30: 5.64 | M30: 4.9 | N30: 4.86
A31: 580.78 | B31: 7 | C31: 6.2 | D31: 5.5 | E31: 5.2 | F31: 4.5 | G31: 4.5 | I31: 7.4 | J31: 6.54 | K31: 5.78 | L31: 5.48 | M31: 4.76 | N31: 4.72
A32: 612.85 | B32: 6.7 | C32: 5.9 | D32: 5.2 | E32: 4.9 | F32: 4.3 | G32: 4.2 | I32: 7.18 | J32: 6.34 | K32: 5.6 | L32: 5.3 | M32: 4.62 | N32: 4.56
A33: 630.28 | B33: 6.5 | C33: 5.7 | D33: 5 | E33: 4.8 | F33: 4.2 | G33: 4.1 | I33: 6.96 | J33: 6.14 | K33: 5.42 | L33: 5.14 | M33: 4.48 | N33: 4.42
A34: 647.3 | B34: 6.3 | C34: 5.6 | D34: 4.9 | E34: 4.7 | F34: 4.1 | G34: 4 | I34: 6.74 | J34: 5.96 | K34: 5.24 | L34: 4.98 | M34: 4.34 | N34: 4.28
A35: 661.65 | B35: 6.2 | C35: 5.4 | D35: 4.8 | E35: 4.6 | F35: 4 | G35: 3.9 | I35: 6.54 | J35: 5.76 | K35: 5.08 | L35: 4.84 | M35: 4.22 | N35: 4.14
A36: 675.8 | B36: 6 | C36: 5.3 | D36: 4.7 | E36: 4.5 | F36: 3.9 | G36: 3.8 | I36: 6.34 | J36: 5.58 | K36: 4.92 | L36: 4.7 | M36: 4.1 | N36: 4
A37: 691.12 | B37: 5.9 | C37: 5.2 | D37: 4.6 | E37: 4.4 | F37: 3.8 | G37: 3.8 | I37: 6.18 | J37: 5.44 | K37: 4.8 | L37: 4.6 | M37: 4 | N37: 3.92
A38: 707.93 | B38: 5.8 | C38: 5.1 | D38: 4.5 | E38: 4.3 | F38: 3.7 | G38: 3.7 | I38: 6.04 | J38: 5.32 | K38: 4.7 | L38: 4.5 | M38: 3.9 | N38: 3.84
A39: 722.85 | B39: 5.6 | C39: 5 | D39: 4.4 | E39: 4.2 | F39: 3.6 | G39: 3.6 | I39: 5.9 | J39: 5.2 | K39: 4.6 | L39: 4.4 | M39: 3.8 | N39: 3.76
A40: 738.87 | B40: 5.5 | C40: 4.9 | D40: 4.3 | E40: 4.1 | F40: 3.6 | G40: 3.5 | I40: 5.76 | J40: 5.1 | K40: 4.5 | L40: 4.3 | M40: 3.72 | N40: 3.68
A41: 760.5 | B41: 5.4 | C41: 4.7 | D41: 4.2 | E41: 4 | F41: 3.5 | G41: 3.4 | I41: 5.64 | J41: 4.98 | K41: 4.4 | L41: 4.2 | M41: 3.64 | N41: 3.6
A42: 778.48 | B42: 5.2 | C42: 4.6 | D42: 4.1 | E42: 3.9 | F42: 3.4 | G42: 3.3 | I42: 5.5 | J42: 4.86 | K42: 4.3 | L42: 4.1 | M42: 3.56 | N42: 3.5
A43: 814.7 | B43: 5 | C43: 4.4 | D43: 3.9 | E43: 3.7 | F43: 3.2 | G43: 3.2 | I43: 5.34 | J43: 4.72 | K43: 4.18 | L43: 3.98 | M43: 3.46 | N43: 3.4
A44: 831.85 | B44: 4.9 | C44: 4.3 | D44: 3.8 | E44: 3.6 | F44: 3.2 | G44: 3.1 | I44: 5.2 | J44: 4.58 | K44: 4.06 | L44: 3.86 | M44: 3.38 | N44: 3.3
A45: 849.95 | B45: 4.8 | C45: 4.2 | D45: 3.7 | E45: 3.6 | F45: 3.1 | G45: 3.1 | I45: 5.06 | J45: 4.44 | K45: 3.94 | L45: 3.76 | M45: 3.28 | N45: 3.22
A46: 863.87 | B46: 4.7 | C46: 4.2 | D46: 3.7 | E46: 3.5 | F46: 3 | G46: 3 | I46: 4.92 | J46: 4.34 | K46: 3.84 | L46: 3.66 | M46: 3.18 | N46: 3.14
I47: 4.85 | J47: 4.275 | K47: 3.775 | L47: 3.6 | M47: 3.125 | N47: 3.1

Sheet Charts
